fUSD/lending_fUSD_20250519
["ID","MTS","AMOUNT","RATE_DAILY","PERIOD"]
[361598589,1747632638470,-400.0,0.00013698,2]
[361598590,1747632638479,-505.38,0.00013698,2]
[361598591,1747632638489,-400.0,0.00013698,2]
[361598593,1747632638498,-400.0,0.00013698,2]
[361598595,1747632638507,-400.0,0.00013698,2]
[361598597,1747632638516,-400.0,0.00013698,2]
[361598599,1747632638525,-400.7,0.00013698,2]
[361598601,1747632638534,-384.13323541,0.00013698,2]
[361598603,1747632638543,-400.0,0.00013698,2]
[361598605,1747632638552,-575.26,0.00013698,2]
[361598607,1747632638561,-400.0,0.00013698,2]
[361598609,1747632638571,-400.0,0.00013698,2]
[361598611,1747632638579,-400.0,0.00013698,2]
[361598612,1747632638588,-484.53280233,0.00013698,2]
[361598614,1747632638597,-400.0,0.00013698,2]
[361598616,1747632638607,-400.0,0.00013698,2]
[361598618,1747632638616,-400.0,0.00013698,2]
[361598620,1747632638625,-675.73,0.00013698,2]
[361598622,1747632638634,-400.0,0.00013698,2]
[361598624,1747632638643,-400.0,0.00013698,2]
[361598626,1747632638652,-400.0,0.00013698,2]
[361598628,1747632638662,-400.0,0.00013698,2]
[361598630,1747632638671,-400.0,0.00013698,2]
[361598632,1747632638680,-343.34141342,0.00013698,2]
[361598634,1747632638689,-401.52745855,0.00013698,2]
[361598636,1747632638698,-400.0,0.00013698,2]
[361598638,1747632638708,-399.11930883,0.00013698,2]
[361598640,1747632638717,-400.0,0.00013698,2]
[361598642,1747632638726,-400.0,0.00013698,2]
[361598644,1747632638735,-250.0,0.00013698,2]
[361598646,1747632638745,-400.0,0.00013698,2]
[361598648,1747632638755,-400.0,0.00013698,2]
[361598650,1747632638764,-400.0,0.00013698,2]
[361598652,1747632638773,-402.62434834,0.00013698,2]
[361598654,1747632638782,-400.0,0.00013698,2]
[361598656,1747632638791,-400.0,0.00013698,2]
[361598658,1747632638801,-400.0,0.00013698,2]
[361598660,1747632638809,-400.0,0.00013698,2]
[361598662,1747632638819,-400.0,0.00013698,2]
[361598664,1747632638828,-545.69426634,0.00013698,2]
[361598666,1747632638837,-400.0,0.00013698,2]
[361598668,1747632638846,-400.0,0.00013698,2]
[361598670,1747632638858,-447.61702974,0.00013698,2]
[361598672,1747632638868,-400.0,0.00013698,2]
[361598674,1747632638877,-400.0,0.00013698,2]
[361598676,1747632638886,-551.14,0.00013698,2]
[361598678,1747632638895,-400.0,0.00013698,2]
[361598680,1747632638904,-748.92,0.00013698,2]
[361598682,1747632638913,-400.0,0.00013698,2]
[361598684,1747632638922,-400.0,0.00013698,2]
[361598685,1747632638931,-400.0,0.00013698,2]
[361598687,1747632638940,-400.0,0.00013698,2]
[361598689,1747632638949,-400.0,0.00013698,2]
[361598691,1747632638958,-400.0,0.00013698,2]
[361598693,1747632638968,-400.0,0.00013698,2]
[361598694,1747632638977,-400.0,0.00013698,2]
[361598695,1747632638986,-400.0,0.00013698,2]
[361598696,1747632638996,-400.0,0.00013698,2]
[361598697,1747632639005,-400.0,0.00013698,2]
[361598698,1747632639015,-400.0,0.00013698,2]
[361598699,1747632639024,-400.0,0.00013698,2]
[361598700,1747632639033,-400.0,0.00013698,2]
[361598701,1747632639043,-458.10659538,0.00013698,2]
[361598702,1747632639053,-400.0,0.00013698,2]
[361598703,1747632639062,-400.0,0.00013698,2]
[361598704,1747632639071,-400.0,0.00013698,2]
[361598705,1747632639081,-400.0,0.00013698,2]
[361598706,1747632639090,-400.0,0.00013698,2]
[361598707,1747632639100,-417.46087915,0.00013698,2]
[361598708,1747632639110,-400.0,0.00013698,2]
[361598709,1747632639119,-400.39106701,0.00013698,2]
[361598710,1747632639129,-400.0,0.00013698,2]
[361598711,1747632639138,-400.0,0.00013698,2]
[361598712,1747632639148,-400.0,0.00013698,2]
[361598713,1747632639157,-400.0,0.00013698,2]
[361598714,1747632639167,-400.0,0.00013698,2]
[361598715,1747632639176,-400.0,0.00013698,2]
[361598716,1747632639185,-400.0,0.00013698,2]
[361598717,1747632639194,-400.0,0.00013698,2]
[361598718,1747632639204,-400.0,0.00013698,2]
[361598719,1747632639213,-400.0,0.00013698,2]
[361598720,1747632639224,-401.7282,0.00013698,2]
[361598721,1747632639239,-400.0,0.00013698,2]
[361598722,1747632639252,-400.0,0.00013698,2]
[361598723,1747632639262,-400.0,0.00013698,2]
[361598724,1747632639271,-400.0,0.00013698,2]
[361598725,1747632639282,-498.51,0.00013698,2]
[361598726,1747632639291,-400.0,0.00013698,2]
[361598727,1747632639300,-400.0,0.00013698,2]
[361598728,1747632639310,-299.74264169,0.00013698,2]
[361598729,1747632639773,-100.25735831,0.00013698,2]
[361598730,1747632639783,-400.0,0.00013698,2]
[361598731,1747632639793,-400.0,0.00013698,2]
[361598732,1747632639803,-135.76049661,0.00013698,2]
[361598733,1747632639814,-380.1609419,0.00013698,2]
[361598734,1747632639823,-153.724159,0.00013698,2]
[361598735,1747632639833,-400.0,0.00013698,2]
[361598736,1747632639842,-400.0,0.00013698,2]
[361598737,1747632639851,-400.0,0.00013698,2]
[361598738,1747632639860,-426.28,0.00013698,2]
[361598739,1747632639869,-400.0,0.00013698,2]
[361598740,1747632639879,-400.0,0.00013698,2]
[361598741,1747632639887,-400.0,0.00013698,2]
[361598742,1747632639896,-400.0,0.00013698,2]
[361598743,1747632639905,-404.30599178,0.00013698,2]
[361598744,1747632639915,-400.0,0.00013698,2]
[361598745,1747632639924,-454.02144306,0.00013698,2]
[361598746,1747632639933,-400.0,0.00013698,2]
[361598747,1747632639942,-400.0,0.00013698,2]
[361598748,1747632639952,-400.0,0.00013698,2]
[361598749,1747632639961,-400.0,0.00013698,2]
[361598750,1747632639971,-400.0,0.00013698,2]
[361598752,1747632639981,-400.0,0.00013698,2]
[361598753,1747632639990,-400.0,0.00013698,2]
[361598754,1747632639999,-531.1176057,0.00013698,2]
[361598755,1747632640009,-400.0,0.00013698,2]
[361598756,1747632640018,-400.0,0.00013698,2]
[361598757,1747632640028,-152.633796,0.00013698,2]
[361598758,1747632640037,-400.0,0.00013698,2]
[361598759,1747632640046,-400.0,0.00013698,2]
[361598760,1747632640055,-466.79231179,0.00013698,2]
[361598761,1747632640334,-171.736552,0.00013698,2]
[361598762,1747632640344,-400.0,0.00013698,2]
[361598763,1747632640353,-400.0,0.00013698,2]
[361598764,1747632640363,-400.0,0.00013698,2]
[361598765,1747632640372,-400.0,0.00013698,2]
[361598766,1747632640381,-400.0,0.00013698,2]
[361598767,1747632640391,-400.0,0.00013698,2]
[361598768,1747632640400,-400.0,0.00013698,2]
[361598769,1747632640409,-400.0,0.00013698,2]
[361598770,1747632640418,-400.0,0.00013698,2]
[361598771,1747632640427,-500.0,0.00013698,2]
[361598772,1747632640436,-591.28,0.00013698,2]
[361598773,1747632640445,-500.0,0.00013698,2]
[361598774,1747632640455,-400.0,0.00013698,2]
[361598775,1747632640465,-400.0,0.00013698,2]
[361598776,1747632640474,-400.0,0.00013698,2]
[361598777,1747632640483,-400.0,0.00013698,2]
[361598778,1747632640491,-400.0,0.00013698,2]
[361598779,1747632640501,-203.26896605,0.00013698,2]
[361598780,1747632640510,-400.0,0.00013698,2]
[361598781,1747632640520,-400.0,0.00013698,2]
[361598782,1747632640529,-400.0,0.00013698,2]
[361598783,1747632640537,-400.0,0.00013698,2]
[361598784,1747632640547,-400.0,0.00013698,2]
[361598785,1747632640556,-199.54245846,0.00013698,2]
[361598786,1747632640565,-292.74538385,0.00013698,2]
[361598787,1747632640575,-400.0,0.00013698,2]
[361598788,1747632640585,-400.0,0.00013698,2]
[361598789,1747632640596,-420.08,0.00013698,2]
[361598790,1747632640606,-400.0,0.00013698,2]
[361598791,1747632640617,-254.46791137,0.00013698,2]
[361598792,1747632640626,-400.0,0.00013698,2]
[361598793,1747632640635,-400.0,0.00013698,2]
[361598794,1747632640645,-400.0,0.00013698,2]
[361598795,1747632640655,-400.0,0.00013698,2]
[361598796,1747632640666,-400.0,0.00013698,2]
[361598797,1747632640676,-400.0,0.00013698,2]
[361598798,1747632640686,-400.0,0.00013698,2]
[361598800,1747632640696,-400.0,0.00013698,2]
[361598802,1747632640705,-400.0,0.00013698,2]
[361598804,1747632640715,-400.0,0.00013698,2]
[361598805,1747632640724,-400.0,0.00013698,2]
[361598806,1747632640734,-400.0,0.00013698,2]
[361598807,1747632640744,-604.27,0.00013698,2]
[361598808,1747632640754,-400.0,0.00013698,2]
[361598809,1747632640764,-400.0,0.00013698,2]
[361598810,1747632640773,-509.12401241,0.00013698,2]
[361598811,1747632640782,-400.0,0.00013698,2]
[361598812,1747632640791,-400.0,0.00013698,2]
[361598813,1747632640800,-400.0,0.00013698,2]
[361598814,1747632640809,-400.0,0.00013698,2]
[361598815,1747632640819,-400.0,0.00013698,2]
[361598816,1747632640828,-400.0,0.00013698,2]
[361598817,1747632640839,-400.0,0.00013698,2]
[361598818,1747632640849,-400.0,0.00013698,2]
[361598819,1747632640860,-444.94,0.00013698,2]
[361598820,1747632640874,-400.0,0.00013698,2]
[361598821,1747632640884,-500.0,0.00013698,2]
[361598822,1747632640894,-813.9,0.00013698,2]
[361598823,1747632640905,-400.0,0.00013698,2]
[361598824,1747632640914,-503.09898145,0.00013698,2]
[361598825,1747632640924,-400.0,0.00013698,2]
[361598826,1747632640933,-400.0,0.00013698,2]
[361598827,1747632640942,-400.0,0.00013698,2]
[361598828,1747632640951,-400.0,0.00013698,2]
[361598829,1747632640960,-400.0,0.00013698,2]
[361598830,1747632640969,-400.0,0.00013698,2]
[361598831,1747632640977,-400.0,0.00013698,2]
[361598832,1747632640986,-400.0,0.00013698,2]
[361598833,1747632640995,-400.0,0.00013698,2]
[361598834,1747632641004,-400.0,0.00013698,2]
[361598835,1747632641013,-880.4,0.00013698,2]
[361598836,1747632641022,-851.63,0.00013698,2]
[361598837,1747632641030,-400.0,0.00013698,2]
[361598838,1747632641039,-400.0,0.00013698,2]
[361598839,1747632641048,-403.00669421,0.00013698,2]
[361598840,1747632641057,-559.85,0.00013698,2]
[361598841,1747632641066,-400.0,0.00013698,2]
[361598842,1747632641075,-400.0,0.00013698,2]
[361598843,1747632641084,-506.93393536,0.00013698,2]
[361598844,1747632641093,-400.0,0.00013698,2]
[361598845,1747632641102,-560.64,0.00013698,2]
[361598846,1747632641113,-400.0,0.00013698,2]
[361598847,1747632641122,-512.92470732,0.00013698,2]
[361598848,1747632641130,-1592.74,0.00013698,2]
[361598849,1747632641139,-402.39684861,0.00013698,2]
[361598850,1747632641149,-400.0,0.00013698,2]
[361598851,1747632641158,-400.0,0.00013698,2]
[361598852,1747632641166,-400.0,0.00013698,2]
[361598853,1747632641175,-400.0,0.00013698,2]
[361598854,1747632641184,-400.0,0.00013698,2]
[361598855,1747632641193,-529.81485947,0.00013698,2]
[361598856,1747632641203,-400.0,0.00013698,2]
[361598857,1747632641211,-500.0,0.00013698,2]
[361598858,1747632641220,-239.33302498,0.00013698,2]
[361598859,1747632641264,-160.66697502,0.00013698,2]
[361598860,1747632641273,-400.0,0.00013698,2]
[361598861,1747632641283,-400.0,0.00013698,2]
[361598862,1747632641292,-254.26092059,0.00013698,2]
[361598863,1747632641303,-145.73907941,0.00013698,2]
[361598864,1747632641312,-400.0,0.00013698,2]
[361598865,1747632641321,-400.0,0.00013698,2]
[361598866,1747632641331,-400.0,0.00013698,2]
[361598867,1747632641340,-426.0,0.00013698,2]
[361598868,1747632641349,-430.84,0.00013698,2]
[361598869,1747632641358,-150.79619623,0.00013698,2]
[361598870,1747632641373,-610.74380377,0.00013698,2]
[361598871,1747632641383,-498.76,0.00013698,2]
[361598872,1747632641392,-355.35166662,0.00013698,2]
[361598873,1747632641401,-400.0,0.00013698,2]
[361598874,1747632641412,-400.0,0.00013698,2]
[361598875,1747632641421,-677.22,0.00013698,2]
[361598876,1747632641430,-195.60471772,0.00013698,2]
[361598877,1747632641442,-204.39528228,0.00013698,2]
[361598878,1747632641451,-400.0,0.00013698,2]
[361598879,1747632641463,-266.39811612,0.00013698,2]
[361598880,1747632641473,-400.0,0.00013698,2]
[361598881,1747632641483,-720.21142186,0.00013698,2]
[361598882,1747632641495,-201.31857814,0.00013698,2]
[361598883,1747632641505,-377.81196417,0.00013698,2]
[361598884,1747632641516,-22.18803583,0.00013698,2]
[361598885,1747632641526,-400.0,0.00013698,2]
[361598886,1747632641535,-581.62,0.00013698,2]
[361598887,1747632641544,-400.0,0.00013698,2]
[361598888,1747632641554,-400.0,0.00013698,2]
[361598889,1747632641563,-400.0,0.00013698,2]
[361598890,1747632641573,-400.0,0.00013698,2]
[361598891,1747632641584,-1008.34,0.00013698,2]
[361598892,1747632641593,-408.95,0.00013698,2]
[361598893,1747632641604,-38.52231539,0.00013698,2]
[361598894,1747632641618,-361.47768461,0.00013698,2]
[361598895,1747632641627,-582.56,0.00013698,2]
[361598896,1747632641636,-400.0,0.00013698,2]
[361598897,1747632641646,-310.6066114,0.00013698,2]
[361598898,1747632641666,-189.3933886,0.00013698,2]
[361598899,1747632641675,-400.0,0.00013698,2]
[361598900,1747632641684,-471.11,0.00013698,2]
[361598901,1747632641693,-400.0,0.00013698,2]
[361598902,1747632641702,-886.14,0.00013698,2]
[361598903,1747632641711,-400.0,0.00013698,2]
[361598904,1747632641720,-400.0,0.00013698,2]
[361598905,1747632641730,-400.0,0.00013698,2]
[361598906,1747632641739,-400.0,0.00013698,2]
[361598907,1747632641748,-400.0,0.00013698,2]
[361598908,1747632641757,-150.0,0.00013698,2]
[361598909,1747632641766,-400.0,0.00013698,2]
[361598910,1747632641775,-539.74,0.00013698,2]
[361598911,1747632641784,-401.07603346,0.00013698,2]
[361598912,1747632641793,-400.0,0.00013698,2]
[361598913,1747632641802,-400.0,0.00013698,2]
[361598914,1747632641811,-400.0,0.00013698,2]
[361598915,1747632641820,-233.72765779,0.00013698,2]
[361598916,1747632641830,-414.65,0.00013698,2]
[361598917,1747632641839,-400.0,0.00013698,2]
[361598918,1747632641848,-400.0,0.00013698,2]
[361598919,1747632641857,-521.84,0.00013698,2]
[361598920,1747632641868,-1000.0,0.00013698,2]
[361598921,1747632641877,-400.0,0.00013698,2]
[361598922,1747632641886,-400.0,0.00013698,2]
[361598923,1747632641895,-400.0,0.00013698,2]
[361598924,1747632641905,-400.0,0.00013698,2]
[361598925,1747632641914,-788.67,0.00013698,2]
[361598926,1747632641924,-400.0,0.00013698,2]
[361598927,1747632641933,-400.0,0.00013698,2]
[361598928,1747632641943,-400.0,0.00013698,2]
[361598929,1747632641952,-400.0,0.00013698,2]
[361598930,1747632641962,-400.0,0.00013698,2]
[361598931,1747632641972,-446.19,0.00013698,2]
[361598932,1747632641981,-596.28,0.00013698,2]
[361598933,1747632641991,-400.0,0.00013698,2]
[361598934,1747632642001,-400.0,0.00013698,2]
[361598935,1747632642012,-728.96,0.00013698,2]
[361598936,1747632642022,-201.77870368,0.00013698,2]
[361598937,1747632642031,-400.0,0.00013698,2]
[361598938,1747632642041,-400.0,0.00013698,2]
[361598939,1747632642050,-400.0,0.00013698,2]
[361598940,1747632642060,-400.0,0.00013698,2]
[361598941,1747632642069,-403.10499183,0.00013698,2]
[361598942,1747632642079,-1153.19,0.00013698,2]
[361598943,1747632642089,-970.78,0.00013698,2]
[361598944,1747632642099,-400.0,0.00013698,2]
[361598945,1747632642108,-661.25,0.00013698,2]
[361598946,1747632642119,-402.67758043,0.00013698,2]
[361598947,1747632642129,-484.22,0.00013698,2]
[361598948,1747632642138,-36.97154421,0.00013698,2]
[361598949,1747632642152,-363.02845579,0.00013698,2]
[361598950,1747632642162,-400.0,0.00013698,2]
[361598951,1747632642171,-400.0,0.00013698,2]
[361598952,1747632642180,-400.0,0.00013698,2]
[361598953,1747632642190,-400.0,0.00013698,2]
[361598954,1747632642198,-321.42969421,0.00013698,2]
[361598955,1747632642210,-78.57030579,0.00013698,2]
[361598956,1747632642219,-400.0,0.00013698,2]
[361598957,1747632642228,-591.68,0.00013698,2]
[361598958,1747632642240,-400.0,0.00013698,2]
[361598959,1747632642249,-400.0,0.00013698,2]
[361598960,1747632642258,-632.49,0.00013698,2]
[361598961,1747632642267,-400.0,0.00013698,2]
[361598962,1747632642277,-178.85969421,0.00013698,2]
[361598963,1747632642337,-372.01030579,0.00013698,2]
[361598964,1747632642346,-400.0,0.00013698,2]
[361598965,1747632642355,-184.90868388,0.00013698,2]
[361598966,1747632642944,-215.09131612,0.00013698,2]
[361598967,1747632642954,-400.0,0.00013698,2]
[361598968,1747632642963,-400.0,0.00013698,2]
[361598969,1747632642973,-195.67220952,0.00013698,2]
[361598970,1747632642984,-742.83779048,0.00013698,2]
[361598971,1747632642994,-400.0,0.00013698,2]
[361598972,1747632643004,-400.0,0.00013698,2]
[361598973,1747632643014,-1215.35,0.00013698,2]
[361598975,1747632643024,-400.0,0.00013698,2]
[361598976,1747632643033,-400.0,0.00013698,2]
[361598978,1747632643043,-400.0,0.00013698,2]
[361598980,1747632643053,-400.0,0.00013698,2]
[361598981,1747632643062,-400.0,0.00013698,2]
[361598982,1747632643072,-11.46509752,0.00013698,2]
[361598983,1747632643083,-1116.14490248,0.00013698,2]
[361598984,1747632643093,-509.23,0.00013698,2]
[361598985,1747632643103,-540.85,0.00013698,2]
[361598986,1747632643113,-521.68,0.00013698,2]
[361598987,1747632643122,-400.0,0.00013698,2]
[361598988,1747632643132,-400.0,0.00013698,2]
[361598989,1747632643141,-443.08,0.00013698,2]
[361598990,1747632643151,-641.29,0.00013698,2]
[361598991,1747632643160,-400.0,0.00013698,2]
[361598993,1747632643170,-523.17,0.00013698,2]
[361598994,1747632643180,-400.0,0.00013698,2]
[361598995,1747632643189,-500.0,0.00013698,2]
[361598996,1747632643199,-611.78454536,0.00013698,2]
[361598997,1747632643208,-404.61,0.00013698,2]
[361598998,1747632643217,-400.0,0.00013698,2]
[361598999,1747632643227,-400.0,0.00013698,2]
[361599001,1747632643236,-400.0,0.00013698,2]
[361599002,1747632643249,-400.0,0.00013698,2]
[361599003,1747632643258,-400.0,0.00013698,2]
[361599004,1747632643267,-401.42506311,0.00013698,2]
[361599005,1747632643276,-581.18860935,0.00013698,2]
[361599006,1747632643290,-209.33139065,0.00013698,2]
[361599007,1747632643299,-410.65,0.00013698,2]
[361599008,1747632643308,-400.0,0.00013698,2]
[361599009,1747632643320,-400.0,0.00013698,2]
[361599010,1747632643329,-400.0,0.00013698,2]
[361599011,1747632643338,-180.01860935,0.00013698,2]
[361599012,1747632643350,-492.53139065,0.00013698,2]
[361599013,1747632643359,-782.99,0.00013698,2]
[361599014,1747632643370,-400.0,0.00013698,2]
[361599015,1747632643379,-400.0,0.00013698,2]
[361599016,1747632643389,-400.0,0.00013698,2]
[361599017,1747632643397,-406.21417887,0.00013698,2]
[361599018,1747632643407,-213.30783296,0.00013698,2]
[361599019,1747632643416,-441.4,0.00013698,2]
[361599020,1747632643425,-666.55,0.00013698,2]
[361599021,1747632643436,-400.0,0.00013698,2]
[361599022,1747632643445,-451.34,0.00013698,2]
[361599023,1747632643454,-400.0,0.00013698,2]
[361599024,1747632643464,-402.84,0.00013698,2]
[361599025,1747632643474,-400.0,0.00013698,2]
[361599026,1747632643483,-505.17,0.00013698,2]
[361599027,1747632643492,-401.45,0.00013698,2]
[361599028,1747632643502,-400.0,0.00013698,2]
[361599029,1747632643511,-400.0,0.00013698,2]
[361599030,1747632643522,-414.86,0.00013698,2]
[361599031,1747632643531,-437.31,0.00013698,2]
[361599032,1747632643540,-400.0,0.00013698,2]
[361599033,1747632643550,-400.0,0.00013698,2]
[361599034,1747632643559,-400.0,0.00013698,2]
[361599035,1747632643569,-400.0,0.00013698,2]
[361599036,1747632643579,-400.0,0.00013698,2]
[361599037,1747632643588,-408.42842385,0.00013698,2]
[361599038,1747632643598,-1358.06,0.00013698,2]
[361599039,1747632643607,-400.0,0.00013698,2]
[361599040,1747632643619,-400.0,0.00013698,2]
[361599041,1747632643628,-1066.18,0.00013698,2]
[361599042,1747632643637,-400.0,0.00013698,2]
[361599043,1747632643647,-400.0,0.00013698,2]
[361599044,1747632643656,-402.77372088,0.00013698,2]
[361599045,1747632643665,-652.91,0.00013698,2]
[361599047,1747632643675,-400.0,0.00013698,2]
[361599048,1747632643685,-750.33,0.00013698,2]
[361599049,1747632643694,-400.0,0.00013698,2]
[361599050,1747632643703,-193.23648156,0.00013698,2]
[361599051,1747632643713,-520.44,0.00013698,2]
[361599052,1747632643722,-400.0,0.00013698,2]
[361599053,1747632643731,-400.0,0.00013698,2]
[361599054,1747632643740,-642.5,0.00013698,2]
[361599056,1747632643749,-425.35,0.00013698,2]
[361599058,1747632643758,-645.19,0.00013698,2]
[361599060,1747632643767,-400.0,0.00013698,2]
[361599061,1747632643777,-533.61,0.00013698,2]
[361599062,1747632643786,-1015.81,0.00013698,2]
[361599063,1747632643795,-917.89,0.00013698,2]
[361599064,1747632643805,-400.0,0.00013698,2]
[361599065,1747632643814,-400.0,0.00013698,2]
[361599066,1747632643823,-200.18413577,0.00013698,2]
[361599067,1747632643832,-400.0,0.00013698,2]
[361599068,1747632643841,-400.0,0.00013698,2]
[361599069,1747632643850,-400.0,0.00013698,2]
[361599070,1747632643859,-494.8001522,0.00013698,2]
[361599071,1747632643872,-552.23,0.00013698,2]
[361599072,1747632643881,-400.0,0.00013698,2]
[361599073,1747632643890,-400.0,0.00013698,2]
[361599074,1747632643899,-400.0,0.00013698,2]
[361599075,1747632643908,-459.25,0.00013698,2]
[361599076,1747632643918,-400.0,0.00013698,2]
[361599077,1747632643927,-400.0,0.00013698,2]
[361599078,1747632643937,-400.0,0.00013698,2]
[361599079,1747632643947,-400.0,0.00013698,2]
[361599080,1747632643958,-400.0,0.00013698,2]
[361599081,1747632643967,-400.0,0.00013698,2]
[361599082,1747632643977,-400.0,0.00013698,2]
[361599083,1747632643987,-400.0,0.00013698,2]
[361599084,1747632643996,-400.0,0.00013698,2]
[361599085,1747632644006,-400.0,0.00013698,2]
[361599086,1747632644016,-400.0,0.00013698,2]
[361599087,1747632644026,-400.0,0.00013698,2]
[361599088,1747632644035,-873.68,0.00013698,2]
[361599089,1747632644044,-524.99,0.00013698,2]
[361599090,1747632644053,-400.0,0.00013698,2]
[361599091,1747632644063,-400.0,0.00013698,2]
[361599092,1747632644071,-922.29,0.00013698,2]
[361599093,1747632644080,-400.0,0.00013698,2]
[361599094,1747632644090,-1153.54,0.00013698,2]
[361599095,1747632644099,-400.0,0.00013698,2]
[361599096,1747632644108,-400.0,0.00013698,2]
[361599097,1747632644120,-400.0,0.00013698,2]
[361599098,1747632644129,-400.0,0.00013698,2]
[361599099,1747632644138,-400.0,0.00013698,2]
[361599100,1747632644147,-814.18,0.00013698,2]
[361599101,1747632644156,-400.0,0.00013698,2]
[361599102,1747632644165,-400.0,0.00013698,2]
[361599103,1747632644175,-400.0,0.00013698,2]
[361599104,1747632644184,-439.47,0.00013698,2]
[361599105,1747632644193,-400.0,0.00013698,2]
[361599106,1747632644434,-400.0,0.00013698,2]
[361599107,1747632644444,-400.0,0.00013698,2]
[361599108,1747632644454,-1201.09,0.00013698,2]
[361599109,1747632644464,-400.0,0.00013698,2]
[361599110,1747632644474,-400.0,0.00013698,2]
[361599111,1747632644483,-527.63,0.00013698,2]
[361599112,1747632644493,-607.01,0.00013698,2]
[361599113,1747632644502,-1808.06,0.00013698,2]
[361599114,1747632644515,-400.0,0.00013698,2]
[361599115,1747632644524,-465.29,0.00013698,2]
[361599116,1747632644533,-400.0,0.00013698,2]
[361599117,1747632644543,-400.48229603,0.00013698,2]
[361599118,1747632644553,-798.22,0.00013698,2]
[361599119,1747632644562,-400.0,0.00013698,2]
[361599120,1747632644571,-400.0,0.00013698,2]
[361599121,1747632644580,-400.0,0.00013698,2]
[361599122,1747632644590,-400.0,0.00013698,2]
[361599123,1747632644599,-400.0,0.00013698,2]
[361599124,1747632644609,-400.0,0.00013698,2]
[361599125,1747632644621,-400.0,0.00013698,2]
[361599126,1747632644630,-400.0,0.00013698,2]
[361599127,1747632644639,-400.0,0.00013698,2]
[361599128,1747632644648,-400.0,0.00013698,2]
[361599129,1747632644658,-400.0,0.00013698,2]
[361599130,1747632644667,-1039.31,0.00013698,2]
[361599131,1747632644677,-598.22,0.00013698,2]
[361599132,1747632644686,-390.90981501,0.00013698,2]
[361599133,1747632644695,-400.0,0.00013698,2]
[361599134,1747632644706,-400.0,0.00013698,2]
[361599135,1747632644715,-978.05,0.00013698,2]
[361599136,1747632644724,-400.0,0.00013698,2]
[361599137,1747632644734,-400.0,0.00013698,2]
[361599138,1747632644743,-431.09,0.00013698,2]
[361599139,1747632644751,-439.32,0.00013698,2]
[361599140,1747632644760,-403.80813653,0.00013698,2]
[361599141,1747632644770,-924.39,0.00013698,2]
[361599142,1747632644780,-400.0,0.00013698,2]
[361599143,1747632644789,-1523.15,0.00013698,2]
[361599144,1747632644799,-400.0,0.00013698,2]
[361599145,1747632644808,-651.47,0.00013698,2]
[361599147,1747632644818,-402.25060091,0.00013698,2]
[361599148,1747632644828,-400.0,0.00013698,2]
[361599149,1747632644837,-400.0,0.00013698,2]
[361599150,1747632644847,-400.0,0.00013698,2]
[361599151,1747632644856,-400.0,0.00013698,2]
[361599152,1747632644870,-408.7651508,0.00013698,2]